[Event "CCT Airthings Masters Play-In 2023"]
[Site "Online"]
[Date "2023.02.03"]
[Round "2"]
[White "daro94"]
[Black "Radjabov, Teimour"]
[Result "1/2-1/2"]
[ECO "C67"]
[WhiteElo "2562"]
[BlackElo "2747"]
[Annotator "NA"]
[PlyCount "136"]
[EventDate "2023.02.03"]
[EventType "swiss"]
[EventCountry "NET"]
[SourceTitle "playchess.com"]
[Source "ChessBase"]
[SourceQuality "1"]
[TimeControl "600+2"]

1. e4 {[%emt 0:00:09]} e5 {[%emt 0:02:26]} 2. Nf3 {[%emt 0:00:02]} Nc6 {[%emt 0:00:01]} 3. Bb5 {[%emt 0:00:01]} Nf6 {[%emt 0:00:02]} 4. O-O {[%emt 0:00:04]} Nxe4 {[%emt 0:00:01]} 5. Re1 {[%emt 0:00:01]} Nd6 {[%emt 0:00:01]} 6. Nxe5 {[%emt 0:00:01]} Be7 {[%emt 0:00:00]} 7. Bf1 {[%emt 0:00:01]} Nxe5 {[%emt 0:00:02]} 8. Rxe5 {[%emt 0:00:01]} O-O {[%emt 0:00:00]} 9. d4 {[%emt 0:00:02]} Bf6 {[%emt 0:00:05]} 10. Re1 {[%emt 0:00:01]} Nf5 {[%emt 0:00:02]} 11. c3 {[%emt 0:00:32]} d6 {[%emt 0:00:02]} 12. Nd2 {[%emt 0:00:11]} Bg5 {[%emt 0:00:05]} 13. a4 {[%emt 0:00:19]} a5 {[%emt 0:00:07]} 14. Nf3 {[%emt 0:00:29]} Bxc1 {[%emt 0:00:10]} 15. Qxc1 {[%emt 0:00:00]} Nh4 {[%emt 0:00:34]} 16. Qf4 {[%emt 0:00:34]} Ng6 {[%emt 0:00:10]} 17. Qg3 {[%emt 0:01:15]} Qf6 {[%emt 0:00:07]} 18. Qg5 {[%emt 0:00:01]} Qxg5 {[%emt 0:00:15]} 19. Nxg5 {[%emt 0:00:00]} Bd7 {[%emt 0:00:11]} 20. Bc4 {[%emt 0:00:13]} h6 {[%emt 0:00:06]} 21. Nf3 {[%emt 0:00:09]} Rfe8 {[%emt 0:00:11]} 22. Re3 {[%emt 0:01:00]} Kf8 {[%emt 0:00:45]} 23. g3 {[%emt 0:00:14]} Ne7 {[%emt 0:00:03]} 24. Bb3 {[%emt 0:00:37]} Nf5 {[%emt 0:02:02]} 25. Rxe8+ {[%emt 0:00:07]} Rxe8 {[%emt 0:00:03]} 26. Re1 {[%emt 0:00:00]} Rb8 {[%emt 0:00:01]} 27. Nd2 {[%emt 0:00:52]} Ne7 {[%emt 0:00:02]} 28. Nc4 {[%emt 0:00:19]} b6 {[%emt 0:00:02]} 29. Bc2 {[%emt 0:00:13]} g6 {[%emt 0:00:18]} 30. h4 {[%emt 0:00:02]} Nd5 {[%emt 0:00:07]} 31. Na3 {[%emt 0:00:56]} Nf6 {[%emt 0:00:14]} 32. Re2 {[%emt 0:00:22]} d5 {[%emt 0:00:09]} 33. b3 {[%emt 0:01:24]} c6 {[%emt 0:00:19]} 34. Bd3 {[%emt 0:00:06]} b5 {[%emt 0:00:06]} 35. axb5 {[%emt 0:00:33]} cxb5 {[%emt 0:00:00]} 36. Ra2 {[%emt 0:00:00]} b4 {[%emt 0:00:11]} 37. Nb1 {[%emt 0:00:18]} bxc3 {[%emt 0:01:18]} 38. Bc2 {[%emt 0:00:01]} Rb4 {[%emt 0:00:10]} 39. Nxc3 {[%emt 0:00:02]} Rxd4 {[%emt 0:00:02]} 40. Kf1 {[%emt 0:00:07]} Ng4 {[%emt 0:00:22]} 41. Ne2 {[%emt 0:00:02]} Bb5 {[%emt 0:00:12]} 42. Ke1 {[%emt 0:00:02]} Rb4 {[%emt 0:00:05]} 43. Rxa5 {[%emt 0:00:01]} Ne5 {[%emt 0:00:04]} 44. Nd4 {[%emt 0:00:03]} Bd7 {[%emt 0:00:05]} 45. Rxd5 {[%emt 0:00:02]} f6 {[%emt 0:00:08]} 46. Ke2 {[%emt 0:00:02]} g5 {[%emt 0:00:03]} 47. hxg5 {[%emt 0:00:01]} hxg5 {[%emt 0:00:01]} 48. f4 {[%emt 0:00:01]} Bg4+ {[%emt 0:00:03]} 49. Ke3 {[%emt 0:00:01]} Nf7 {[%emt 0:00:01]} 50. Bf5 {[%emt 0:00:03]} Bxf5 {[%emt 0:00:05]} 51. Rxf5 {[%emt 0:00:00]} gxf4+ {[%emt 0:00:01]} 52. gxf4 {[%emt 0:00:01]} Nh6 {[%emt 0:00:02]} 53. Rb5 {[%emt 0:00:03]} Ng4+ {[%emt 0:00:03]} 54. Kd3 {[%emt 0:00:03]} Nf2+ {[%emt 0:00:02]} 55. Kc3 {[%emt 0:00:00]} Rxb5 {[%emt 0:00:01]} 56. Nxb5 {[%emt 0:00:00]} Nh3 {[%emt 0:00:00]} 57. f5 {[%emt 0:00:01]} Ke7 {[%emt 0:00:01]} 58. Kd4 {[%emt 0:00:06]} Ng5 {[%emt 0:00:04]} 59. Kd5 {[%emt 0:00:01]} Nf3 {[%emt 0:00:04]} 60. b4 {[%emt 0:00:03]} Ne1 {[%emt 0:00:02]} 61. Ke4 {[%emt 0:00:05]} Nc2 {[%emt 0:00:02]} 62. Nc3 {[%emt 0:00:01]} Nxb4 {[%emt 0:00:02]} 63. Nd5+ {[%emt 0:00:03]} Nxd5 {[%emt 0:00:00]} 64. Kxd5 {[%emt 0:00:00]} Kd7 {[%emt 0:00:02]} 65. Kc5 {[%emt 0:00:00]} Kc7 {[%emt 0:00:01]} 66. Kd5 {[%emt 0:00:01]} Kd7 {[%emt 0:00:01]} 67. Kc5 {[%emt 0:00:00]} Kc7 {[%emt 0:00:00]} 68. Kd5 {[%emt 0:00:02]} Kd7 {[%emt 0:00:01]} 1/2-1/2

[Event "CCT Airthings Masters Play-In 2023"]
[Site "Online"]
[Date "2023.02.03"]
[Round "2"]
[White "Fandorine"]
[Black "Nepomniachtchi, Ian"]
[Result "0-1"]
[ECO "B48"]
[WhiteElo "2561"]
[BlackElo "2793"]
[Annotator "TA"]
[PlyCount "52"]
[EventDate "2023.02.03"]
[EventType "swiss"]
[EventCountry "NET"]
[SourceTitle "playchess.com"]
[Source "ChessBase"]
[SourceQuality "1"]
[TimeControl "600+2"]

{[%evp 14,52,22,20,39,32,64,53,62,18,60,8,20,17,99,72,80,35,48,40,41,32,23,0,-16,-242,-218,-452,-381,-425,-422,-424,-438,-843,-838,-800,-776,-906,-899,-875,-873]} 1. e4 {[%emt 0:00:04]} c5 {[%emt 0:00:07]} 2. Nf3 {[%emt 0:00:02]} e6 {[%emt 0:00:02]} 3. d4 {[%emt 0:00:07]} cxd4 {[%emt 0:00:00]} 4. Nxd4 {[%emt 0:00:00]} Nc6 {[%emt 0:00:00]} 5. Nc3 {[%emt 0:00:05]} Qc7 {[%emt 0:00:01]} 6. a3 {[%emt 0:00:11]} a6 {[%emt 0:00:02]} 7. Be3 {[%emt 0:00:03]} Nf6 {[%emt 0:00:03]} 8. f4 {[%emt 0:00:01] outshines the older 8.Be2.} h5 {[%emt 0:00:04] B48: Sicilian: Taimanov: 5 Nc3 Qc7 6 Be3 a6 without Be2.} 9. Be2 {[%emt 0:01:01] Inhibits Ng4.} d6 {[%emt 0:00:21] [#]} 10. Qd2 $146 {[%emt 0:00:43]} ({Predecessor:} 10. O-O Bd7 11. Bf3 Be7 12. Qd2 Na5 13. b3 Rc8 14. Nde2 Ng4 15. Bxg4 hxg4 16. Bd4 {1-0 Khanin,S (2517)-Grochal,J (2313) Titled Tuesday intern op 2nd July blitz 2019 (1)}) 10... Bd7 {[%emt 0:00:08] White is slightly better.} 11. O-O-O {[%emt 0:00:07]} Be7 {[%emt 0:00:10]} 12. Rhe1 {[%emt 0:00:12]} (12. h3 $14) 12... Rc8 $11 {[%emt 0:00:09]} 13. Kb1 {[%emt 0:00:03]} O-O {[%emt 0:00:12] [#]} (13... b5 $11 {keeps the balance.}) 14. h3 $1 $16 {[%emt 0:00:09]} h4 {[%emt 0:01:04]} 15. g4 {[%emt 0:01:56] Hoping for g5.} hxg3 {[%emt 0:00:11]} 16. Rg1 {[%emt 0:00:01]} Nxd4 {[%emt 0:00:04]} 17. Bxd4 {[%emt 0:00:12]} e5 {[%emt 0:00:03]} 18. fxe5 {[%emt 0:00:40]} (18. Be3 $5) 18... dxe5 {[%emt 0:00:04][%cal Bd6e5,Be5d4][%mdl 32]} 19. Rxg3 $2 {[%emt 0:00:08] This move loses the game for White.} (19. Be3 $11) 19... exd4 $19 {[%emt 0:00:57][%mdl 64] [#] Discovered Attack} 20. Rxg7+ {[%emt 0:02:01]} (20. Rdg1 Qxg3 21. Rxg3 dxc3 22. Qg5) 20... Kxg7 {[%emt 0:00:00][%cal Bg8g7,Bg7h7,Bh7h8][%mdl 32]} 21. Rg1+ {[%emt 0:00:01]} Kh7 {[%emt 0:00:44] Black is clearly winning.} 22. Qg5 {[%emt 0:00:05][%csl Gg1][%cal Rg5g7]} Ng4 $1 {[%emt 0:00:01]} (22... dxc3 $2 23. Qg7#) 23. Qh5+ {[%emt 0:00:03]} (23. Qxe7 $142 Be6 24. Qh4+ Nh6 25. Bd3) 23... Nh6 {[%emt 0:00:01]} 24. Bd3 {[%emt 0:00:02]} Qf4 {[%emt 0:00:12]} (24... dxc3 $2 {is a self mate.} 25. e5+ f5 26. Qg6+ Kh8 27. Qxh6#) 25. e5+ {[%emt 0:01:04]} Kh8 {[%emt 0:00:05]} 26. Nd5 {[%emt 0:00:19]} Qh4 {[%emt 0:00:02] Weighted Error Value: White=0.85/Black=0.14 (very precise)} 0-1

[Event "CCT Airthings Masters Play-In 2023"]
[Site "Online"]
[Date "2023.02.03"]
[Round "2"]
[White "Sanan_Sjugirov"]
[Black "Sevian, Samuel"]
[Result "0-1"]
[ECO "C71"]
[WhiteElo "2559"]
[BlackElo "2687"]
[Annotator "TA"]
[PlyCount "110"]
[EventDate "2023.02.03"]
[EventType "swiss"]
[EventCountry "NET"]
[SourceTitle "playchess.com"]
[Source "ChessBase"]
[SourceQuality "1"]
[TimeControl "600+2"]

{[%evp 19,110,10,12,15,45,35,28,28,36,30,54,54,54,54,55,54,45,32,32,33,37,33,44,8,27,8,34,27,37,24,45,-7,26,39,79,79,81,79,80,37,81,38,86,54,81,43,112,97,105,41,83,83,103,89,89,81,81,81,186,163,204,152,195,85,85,85,91,40,38,37,39,43,37,36,36,36,36,36,49,39,127,122,120,43,45,-1589,-1404,-1094,-1030,-972,-913,-29972,-29974]} 1. e4 {[%emt 0:00:05]} e5 {[%emt 0:00:05]} 2. Nf3 {[%emt 0:00:03]} Nc6 {[%emt 0:00:00]} 3. Bb5 {[%emt 0:00:06]} a6 {[%emt 0:00:03]} 4. Ba4 {[%emt 0:00:02]} Nf6 {[%emt 0:00:01]} 5. O-O {[%emt 0:00:04]} Be7 {[%emt 0:00:01]} 6. d3 {[%emt 0:00:04]} d6 {[%emt 0:00:01]} 7. c4 {[%emt 0:00:03]} Bg4 {[%emt 0:00:02]} 8. h3 {[%emt 0:00:24]} Bxf3 {[%emt 0:00:02]} 9. Qxf3 {[%emt 0:00:00]} Nd7 {[%emt 0:00:01]} 10. Be3 {[%emt 0:00:09]} O-O {[%emt 0:00:03] [#]} 11. Qg4 $146 {[%emt 0:01:42] C71: Ruy Lopez: Deferred Steinitz Variation, sidelines.} ({Predecessor:} 11. Bxc6 bxc6 12. Nc3 Rb8 13. b3 Bg5 14. Rad1 c5 15. Bxg5 Qxg5 16. Qe3 h6 17. Nd5 Rb7 18. f4 exf4 19. Rxf4 {½-½ Naroditsky,D (2617)-Artemiev,V (2701) Speed Chess Q2 KO blitz 2022 (2.8)}) 11... Nc5 {[%emt 0:00:49]} 12. Bxc5 {[%emt 0:00:28]} dxc5 {[%emt 0:00:02]} 13. Bxc6 {[%emt 0:00:02] White has an edge.} bxc6 {[%emt 0:00:00]} 14. Qe2 {[%emt 0:00:25]} Rb8 {[%emt 0:00:01]} 15. Nc3 {[%emt 0:00:10]} Qd4 {[%emt 0:00:09]} 16. Rad1 {[%emt 0:00:20]} g6 {[%emt 0:00:26]} 17. Rfe1 {[%emt 0:00:28]} Bh4 {[%emt 0:00:27]} 18. Rd2 {[%emt 0:00:41]} (18. Qd2 {feels hotter.} Bg3 19. Rf1 Bf4 20. Qc2) 18... Bg5 {[%emt 0:00:14]} 19. Rc2 {[%emt 0:00:06]} Rbd8 {[%emt 0:00:14]} 20. Rd1 {[%emt 0:00:05]} h5 {[%emt 0:00:40]} 21. Qf3 {[%emt 0:01:00]} Kg7 {[%emt 0:00:03]} 22. Kh1 {[%emt 0:00:20]} Qd7 {[%emt 0:00:23]} 23. Qe2 {[%emt 0:00:28]} Rfe8 {[%emt 0:00:21]} 24. Qe1 {[%emt 0:00:18]} Re6 {[%emt 0:01:15]} 25. Ne2 {[%emt 0:00:19]} (25. Na4 $14 Be7 26. Qa5) 25... Rf6 {[%emt 0:00:03]} (25... Rd6 $5 {[%cal Rd6d3]}) 26. Ng1 {[%emt 0:00:14]} Rb8 {[%emt 0:02:04]} 27. Qe2 {[%emt 0:00:05]} Re6 {[%emt 0:00:37]} 28. Rc3 {[%emt 0:00:21]} Bh6 {[%emt 0:00:10]} 29. Rb3 {[%emt 0:00:12]} Rb6 {[%emt 0:00:05]} 30. Nf3 {[%emt 0:00:07]} Kg8 {[%emt 0:00:20]} (30... Rxb3 $14 {is superior.} 31. axb3 Qc8) 31. Kg1 {[%emt 0:00:05]} Re8 {[%emt 0:00:04]} 32. Qc2 {[%emt 0:00:12]} Qd6 {[%emt 0:00:04]} (32... a5 $14) 33. Qc3 {[%emt 0:00:10]} Bg7 {[%emt 0:00:08]} 34. Qa5 {[%emt 0:00:07]} (34. Ra3 $16) 34... Reb8 {[%emt 0:00:57]} 35. Rxb6 {[%emt 0:00:03]} Rxb6 {[%emt 0:00:06]} 36. b3 {[%emt 0:00:12]} Bf8 {[%emt 0:00:06]} 37. Qc3 {[%emt 0:00:03]} Bg7 {[%emt 0:00:01]} 38. g3 {[%emt 0:00:04]} f5 {[%emt 0:00:14]} (38... Rb8 $16 {keeps fighting.}) 39. Qe1 {[%emt 0:00:19]} Rb8 {[%emt 0:00:03]} 40. Qe2 {[%emt 0:00:09]} Rf8 {[%emt 0:00:26]} 41. Kg2 {[%emt 0:00:05]} (41. exf5 $1 $18 Rxf5 42. Re1) 41... f4 $16 {[%emt 0:00:13]} 42. Nh2 {[%emt 0:00:50]} Qd7 {[%emt 0:00:09]} 43. g4 {[%emt 0:00:01]} (43. Qd2 $16) 43... f3+ $14 {[%emt 0:00:02][%mdl 64] Deflection} 44. Nxf3 {[%emt 0:00:01] Hoping for gxh5.} hxg4 {[%emt 0:00:01]} 45. Ng1 {[%emt 0:00:05]} gxh3+ {[%emt 0:00:01]} 46. Nxh3 {[%emt 0:00:00]} Bh6 {[%emt 0:00:00]} 47. Rh1 {[%emt 0:00:02]} Kg7 {[%emt 0:00:02]} 48. Ng1 {[%emt 0:00:04]} Bg5 {[%emt 0:00:05]} 49. Rh3 {[%emt 0:00:03]} Rf4 {[%emt 0:00:01] [#]} (49... Bf4 $14) 50. Nf3 $1 $16 {[%emt 0:00:08]} Rg4+ {[%emt 0:00:02] [#]} 51. Rg3 {[%emt 0:00:01]} ({White should play} 51. Kf1 $1 $16) 51... Bf4 $14 {[%emt 0:00:01][%mdl 64] Pin} 52. Rxg4 $4 {[%emt 0:00:03][%mdl 8192]} (52. a3 $14) 52... Qxg4+ $19 {[%emt 0:00:00]} 53. Kf1 {[%emt 0:00:00]} Qh3+ {[%emt 0:00:02]} 54. Kg1 {[%emt 0:00:01]} g5 {[%emt 0:00:02][%cal Bg6g5,Bg5g4][%mdl 32] ( -> ...g4)} 55. Qd1 {[%emt 0:00:09]} g4 {[%emt 0:00:03] Quite a comeback for Black.   Weighted Error Value: White=0.41/Black=0.17 (very precise)} 0-1

[Event "CCT Airthings Masters Play-In 2023"]
[Site "Online"]
[Date "2023.02.03"]
[Round "2"]
[White "daika91"]
[Black "Dominguez Perez, Leinier"]
[Result "1/2-1/2"]
[ECO "D27"]
[WhiteElo "2557"]
[BlackElo "2743"]
[Annotator "NA"]
[PlyCount "115"]
[EventDate "2023.02.03"]
[EventType "swiss"]
[EventCountry "NET"]
[SourceTitle "playchess.com"]
[Source "ChessBase"]
[SourceQuality "1"]
[TimeControl "600+2"]

1. d4 {[%emt 0:00:04]} d5 {[%emt 0:00:04]} 2. c4 {[%emt 0:00:02]} dxc4 {[%emt 0:00:01]} 3. Nf3 {[%emt 0:00:08]} Nf6 {[%emt 0:00:02]} 4. e3 {[%emt 0:00:02]} e6 {[%emt 0:00:01]} 5. Bxc4 {[%emt 0:00:01]} a6 {[%emt 0:00:00]} 6. O-O {[%emt 0:00:02]} c5 {[%emt 0:00:01]} 7. Be2 {[%emt 0:00:39]} cxd4 {[%emt 0:00:02]} 8. Nxd4 {[%emt 0:00:06]} Be7 {[%emt 0:00:03]} 9. Nc3 {[%emt 0:00:03]} O-O {[%emt 0:00:29]} 10. e4 {[%emt 0:00:08]} e5 {[%emt 0:00:43]} 11. Nb3 {[%emt 0:01:03]} Be6 {[%emt 0:00:33]} 12. Be3 {[%emt 0:00:11]} Nbd7 {[%emt 0:00:02]} 13. Rc1 {[%emt 0:00:32]} Rc8 {[%emt 0:00:02]} 14. f3 {[%emt 0:00:07]} Nc5 {[%emt 0:01:01]} 15. Qxd8 {[%emt 0:01:58]} Rfxd8 {[%emt 0:00:15]} 16. Nxc5 {[%emt 0:00:51]} Bxc5 {[%emt 0:00:02]} 17. Bxc5 {[%emt 0:00:00]} Rxc5 {[%emt 0:00:02]} 18. Rfd1 {[%emt 0:00:06]} Rdc8 {[%emt 0:00:10]} 19. a3 {[%emt 0:00:19]} Kf8 {[%emt 0:00:08]} 20. Kf2 {[%emt 0:00:20]} Ke7 {[%emt 0:00:25]} 21. Rd2 {[%emt 0:00:07]} Nd7 {[%emt 0:01:02]} 22. Rcd1 {[%emt 0:00:02]} Nb6 {[%emt 0:00:55]} 23. Rd6 {[%emt 0:00:11]} R5c6 {[%emt 0:00:28]} 24. Rxc6 {[%emt 0:00:01]} Rxc6 {[%emt 0:00:00]} 25. g3 {[%emt 0:00:29]} Bb3 {[%emt 0:00:52]} 26. Rd2 {[%emt 0:00:06]} Na4 {[%emt 0:00:10]} 27. Nxa4 {[%emt 0:00:27]} Bxa4 {[%emt 0:00:01]} 28. f4 {[%emt 0:00:02]} Rh6 {[%emt 0:00:36]} 29. h4 {[%emt 0:00:03]} exf4 {[%emt 0:00:06]} 30. gxf4 {[%emt 0:00:03]} Rxh4 {[%emt 0:00:05]} 31. Kg3 {[%emt 0:00:01]} Rh6 {[%emt 0:00:07]} 32. e5 {[%emt 0:00:25]} Rg6+ {[%emt 0:00:04]} 33. Kf2 {[%emt 0:00:02]} Bc6 {[%emt 0:00:14]} 34. Bf3 {[%emt 0:00:02]} Rh6 {[%emt 0:00:39]} 35. Bxc6 {[%emt 0:00:06]} Rxc6 {[%emt 0:00:02]} 36. Kf3 {[%emt 0:00:06]} g6 {[%emt 0:00:17]} 37. Rd4 {[%emt 0:00:08]} h5 {[%emt 0:00:05]} 38. a4 {[%emt 0:00:10]} a5 {[%emt 0:00:37]} 39. Rd5 {[%emt 0:00:04]} b6 {[%emt 0:00:02]} 40. Rb5 {[%emt 0:00:03]} Kd7 {[%emt 0:00:07]} 41. b4 {[%emt 0:00:15]} axb4 {[%emt 0:00:25]} 42. Rxb4 {[%emt 0:00:02]} Rc3+ {[%emt 0:00:05]} 43. Ke4 {[%emt 0:00:12]} Kc6 {[%emt 0:00:01]} 44. f5 {[%emt 0:00:04]} h4 {[%emt 0:00:02]} 45. fxg6 {[%emt 0:00:16]} fxg6 {[%emt 0:00:01]} 46. e6 {[%emt 0:00:03]} h3 {[%emt 0:00:17]} 47. e7 {[%emt 0:00:24]} Kd7 {[%emt 0:00:03]} 48. Rxb6 {[%emt 0:00:06]} h2 {[%emt 0:00:01]} 49. Rb1 {[%emt 0:00:04]} Kxe7 {[%emt 0:00:06]} 50. Kf4 {[%emt 0:00:07]} Ra3 {[%emt 0:00:03]} 51. Rh1 {[%emt 0:00:10]} Rxa4+ {[%emt 0:00:01]} 52. Kg5 {[%emt 0:00:00]} Ra2 {[%emt 0:00:03]} 53. Kxg6 {[%emt 0:00:02]} Ke6 {[%emt 0:00:01]} 54. Kg5 {[%emt 0:00:00]} Ke5 {[%emt 0:00:01]} 55. Kg4 {[%emt 0:00:01]} Ke4 {[%emt 0:00:01]} 56. Kg3 {[%emt 0:00:01]} Kf5 {[%emt 0:00:01]} 57. Rxh2 {[%emt 0:00:01]} Rxh2 {[%emt 0:00:00]} 58. Kxh2 {[%emt 0:00:01]} 1/2-1/2

[Event "CCT Airthings Masters Play-In 2023"]
[Site "Online"]
[Date "2023.02.03"]
[Round "2"]
[White "Murzin, Volodar"]
[Black "Sam_ChessMood"]
[Result "1/2-1/2"]
[ECO "B53"]
[WhiteElo "2547"]
[BlackElo "2606"]
[Annotator "TA"]
[PlyCount "158"]
[EventDate "2023.02.03"]
[EventType "swiss"]
[EventCountry "NET"]
[SourceTitle "playchess.com"]
[Source "ChessBase"]
[SourceQuality "1"]
[TimeControl "600+2"]

{[%evp 9,158,17,20,0,11,14,10,0,0,0,0,0,0,3,0,-3,0,-2,30,-8,25,-31,-21,-67,-47,-40,-52,-39,-28,-35,-4,-6,3,7,6,12,20,43,45,-8,-11,-9,-5,-49,-45,-39,-4,-4,-9,-10,0,-10,-6,-10,-8,-17,-17,-24,-20,-54,-64,-75,-38,-73,-73,-73,-72,-103,-90,-90,-73,-73,-73,-83,-73,-76,-49,-55,-18,-18,-18,-22,-22,-22,-18,-18,-26,-22,-19,-19,-11,-11,-11,-11,0,0,0,0,0,0,0,0,0,0,0,0,0,0,0,0,0,0,0,0,0,0,0,0,0,0,0,0,0,0,0,0,0,0,0,0,0,0,0,0,0,0,0,0,0,0,0,0,0,0,0,0,0,0,0,0,0]} 1. e4 {[%emt 0:00:34]} c5 {[%emt 0:00:05]} 2. Nf3 {[%emt 0:00:08]} d6 {[%emt 0:00:01]} 3. d4 {[%emt 0:00:16]} cxd4 {[%emt 0:00:01]} 4. Qxd4 {[%emt 0:00:00]} Nc6 {[%emt 0:00:07]} 5. Qe3 {[%emt 0:00:07]} g6 {[%emt 0:00:10]} 6. Be2 {[%emt 0:00:05] B53: Sicilian: 2...d6: Lines with Qxd4.} Bg7 {[%emt 0:00:06]} 7. O-O {[%emt 0:00:02]} Nf6 {[%emt 0:00:04]} 8. Rd1 {[%emt 0:00:02]} O-O {[%emt 0:00:03]} 9. Nc3 {[%emt 0:00:02]} Nb4 {[%emt 0:01:38]} 10. Ne1 {[%emt 0:00:15]} Be6 {[%emt 0:00:39] [#]} 11. a3 $146 {[%emt 0:00:03]} ({Predecessor:} 11. Qg3 Rc8 12. Qh4 Qa5 13. Bd2 Nc6 14. Nd5 Qa4 15. Nc3 Qa5 16. h3 Rfe8 17. a4 {½-½ Voiculescu,C (2429)-Sadowski,M (2453) EU-ch 2019 ct02 email}) 11... Nc6 {[%emt 0:00:01]} 12. Nf3 {[%emt 0:00:11]} Ng4 {[%emt 0:00:03]} 13. Qf4 {[%emt 0:00:02]} Rc8 {[%emt 0:00:11]} 14. Qg3 {[%emt 0:00:06]} (14. Ng5 {with more complications.} Nce5 15. Qg3 Bd7 16. h3) 14... Nge5 {[%emt 0:00:08]} 15. Nxe5 {[%emt 0:00:07]} (15. Ng5 $11) 15... Nxe5 {[%emt 0:00:09]} 16. Be3 {[%emt 0:00:17]} (16. Rb1 $11) 16... Bc4 {[%emt 0:00:15]} (16... Nc4 $5 {[%cal Rc4b2]} 17. Rab1 Nxa3 18. bxa3 Rxc3 19. Rxb7 Rxc2 $17) 17. Bd3 {[%emt 0:00:21]} Nxd3 {[%emt 0:00:28]} 18. cxd3 {[%emt 0:00:00]} Bb3 {[%emt 0:00:01][%csl LRc3,LRd1]} 19. Rdc1 {[%emt 0:00:11]} d5 {[%emt 0:00:31]} 20. exd5 {[%emt 0:00:09]} Bxd5 {[%emt 0:00:14]} 21. Bxa7 {[%emt 0:00:09]} Be6 {[%emt 0:00:03]} 22. Qe3 {[%emt 0:00:03] Against b6} Bf5 {[%emt 0:00:59]} 23. d4 {[%emt 0:00:13]} Re8 {[%emt 0:00:20]} 24. Bc5 {[%emt 0:00:20]} (24. Rd1 $14) 24... b6 $11 {[%emt 0:00:09] [#] Threatens to win with ...e5.} 25. Bb4 {[%emt 0:00:10]} Qxd4 {[%emt 0:00:18]} 26. Rd1 {[%emt 0:00:08]} Qxe3 {[%emt 0:00:14]} 27. fxe3 {[%emt 0:00:00]} e6 {[%emt 0:00:25]} 28. Rd2 {[%emt 0:00:07]} g5 {[%emt 0:00:16]} 29. Nb5 {[%emt 0:00:35] [#] Nd6 would be deadly.} Rc2 {[%emt 0:00:37]} 30. Rxc2 {[%emt 0:00:15]} Bxc2 {[%emt 0:00:01]} 31. Rc1 {[%emt 0:00:01]} Bd3 {[%emt 0:00:05]} (31... Bxb2 $2 32. Rxc2 Be5 33. Rc6 $18) 32. Nd4 {[%emt 0:00:08]} Be4 {[%emt 0:00:09]} 33. Rc7 {[%emt 0:00:18]} h5 {[%emt 0:00:01]} 34. Kf2 {[%emt 0:00:10]} Be5 {[%emt 0:00:05][%csl LRc7,LRh2]} 35. Rc1 {[%emt 0:00:07]} h4 {[%emt 0:00:19]} 36. h3 {[%emt 0:00:25]} Kg7 {[%emt 0:00:01]} 37. Bc3 {[%emt 0:00:03]} Kg6 {[%emt 0:00:01]} 38. Nf3 {[%emt 0:00:05]} Bg3+ {[%emt 0:00:29] A strong pair of Bishops.} 39. Kf1 {[%emt 0:00:10]} e5 {[%emt 0:00:06]} 40. Rd1 {[%emt 0:00:04]} Re6 {[%emt 0:00:07] Inhibits Rd6.} 41. Rd8 {[%emt 0:00:08]} f6 {[%emt 0:00:02]} 42. Nd2 {[%emt 0:00:48]} Bc6 {[%emt 0:00:04]} 43. Kg1 {[%emt 0:00:26]} Be1 {[%emt 0:00:31]} 44. Nb1 {[%emt 0:00:21]} Be4 {[%emt 0:00:11]} 45. Bxe1 {[%emt 0:00:14] aiming for Nc3.} Bxb1 {[%emt 0:00:02][%mdl 4096] Endgame KRB-KRB} 46. Kf2 {[%emt 0:00:14]} Be4 {[%emt 0:00:01]} 47. g3 {[%emt 0:00:02]} hxg3+ {[%emt 0:00:03]} 48. Kxg3 {[%emt 0:00:00]} Rc6 {[%emt 0:00:14] Threatening ...Rc1. The position is equal.} 49. Bc3 $1 {[%emt 0:00:02]} Bf5 {[%emt 0:00:04]} 50. h4 {[%emt 0:00:07]} gxh4+ {[%emt 0:00:03]} 51. Kxh4 {[%emt 0:00:00]} Be6 {[%emt 0:00:15]} 52. Kg3 {[%emt 0:00:04]} Kf5 {[%emt 0:00:00]} 53. Kf3 {[%emt 0:00:04]} Bc4 {[%emt 0:00:05]} 54. e4+ {[%emt 0:00:08]} Ke6 {[%emt 0:00:01]} 55. Ke3 {[%emt 0:00:00]} Rd6 {[%emt 0:00:01]} 56. Rxd6+ {[%emt 0:00:05]} Kxd6 {[%emt 0:00:01] KB-KB} 57. Bb4+ {[%emt 0:00:01]} Ke6 {[%emt 0:00:01]} 58. Be1 {[%emt 0:00:02]} Ba6 {[%emt 0:00:04]} 59. a4 {[%emt 0:00:04]} Bb7 {[%emt 0:00:08]} 60. Kd3 {[%emt 0:00:12]} Ba6+ {[%emt 0:00:00]} 61. Kc3 {[%emt 0:00:03]} Kd6 {[%emt 0:00:15]} 62. Bf2 {[%emt 0:00:02]} Bb7 {[%emt 0:00:03]} 63. Kd3 {[%emt 0:00:07]} Ba6+ {[%emt 0:00:06]} 64. Ke3 {[%emt 0:00:01]} Bc8 {[%emt 0:00:02]} 65. Kf3 {[%emt 0:00:05]} Kc6 {[%emt 0:00:02]} 66. Bh4 {[%emt 0:00:01]} f5 {[%emt 0:00:01]} 67. Bf6 {[%emt 0:00:04]} fxe4+ {[%emt 0:00:01]} 68. Kxe4 {[%emt 0:00:00]} Be6 {[%emt 0:00:03]} 69. Bxe5 {[%emt 0:00:06]} Bb3 {[%emt 0:00:01]} 70. Kd4 {[%emt 0:00:01]} Bxa4 {[%emt 0:00:01]} 71. Kc3 {[%emt 0:00:00]} Bd1 {[%emt 0:00:01]} 72. Kb4 {[%emt 0:00:02]} Bf3 {[%emt 0:00:01]} 73. Bc3 {[%emt 0:00:00]} b5 {[%emt 0:00:01]} 74. Be1 {[%emt 0:00:00]} Bg2 {[%emt 0:00:01]} 75. Bf2 {[%emt 0:00:00]} Bf3 {[%emt 0:00:01]} 76. Ka5 {[%emt 0:00:04]} Bg2 {[%emt 0:00:01]} 77. b4 {[%emt 0:00:00]} Bf3 {[%emt 0:00:01]} 78. Bb6 {[%emt 0:00:01]} Be4 {[%emt 0:00:01]} 79. Bc5 {[%emt 0:00:00]} Bd5 {[%emt 0:00:01] Weighted Error Value: White=0.10 (very precise) /Black=0.07 (flawless)} 1/2-1/2